bitfinex/quotes_BTCUSD_20251219
["timestamp","ask_amount","ask_price","bid_price","bid_amount"]
[1766149320532,0.58019,88047.0,88029.0,0.51232989]
[1766149320738,0.51777104,88048.0,88029.0,0.50097]
[1766149320739,0.58019,88044.0,88029.0,0.50097]
[1766149320941,0.02839521,88043.0,88030.0,0.01135976]
[1766149321200,0.06814318,88050.0,88030.0,0.01135976]
[1766149321201,0.58019,88052.0,88042.0,0.01135821]
[1766149321404,0.22710141,88067.0,88034.0,0.49525]
[1766149321405,0.00572,88067.0,88055.0,0.49525]
[1766149321822,0.01135421,88073.0,88055.0,0.49525]
[1766149321823,0.47802,88074.0,88055.0,0.49525]
[1766149322031,0.47802,88074.0,88054.0,0.01135666]
[1766149322032,0.0025,88072.0,88059.0,0.49525]
[1766149322237,0.0025,88072.0,88060.0,0.01843367]
[1766149322387,0.0025,88072.0,88060.0,0.02978956]
[1766149323040,0.0025,88072.0,88060.0,0.01843367]
[1766149323244,0.01135357,88078.0,88060.0,0.01843367]
[1766149323245,0.01135331,88080.0,88062.0,0.49525]
[1766149323469,0.03410361,88079.0,88064.0,0.49525]
[1766149323936,0.0025,88078.0,88064.0,0.49525]
[1766149324517,0.0025,88076.0,88064.0,0.49525]
[1766149325309,0.0025,88076.0,88064.0,0.50660537]
[1766149325533,0.06811734,88084.0,88064.0,0.50660537]
[1766149325534,0.00572,88077.0,88069.0,0.49394]
[1766149325867,0.00572,88080.0,88070.0,0.01928593]
[1766149326040,0.01135254,88086.0,88071.0,0.01928486]
[1766149326270,0.03410167,88085.0,88072.0,0.49394]
[1766149326504,0.00572,88084.0,88073.0,0.01135421]
[1766149326944,0.00572,88084.0,88074.0,0.01135408]
[1766149327158,0.00572,88084.0,88073.0,0.0681252]
[1766149327740,0.02838038,88089.0,88076.0,0.01135383]
[1766149327961,0.00572,88090.0,88081.0,0.49394]
[1766149329108,0.00572,88092.0,88081.0,0.49394]
[1766149329376,0.4798,88095.0,88081.0,0.49394]
[1766149329601,0.00572,88091.0,88081.0,0.49394]
[1766149329818,0.00572,88094.0,88081.0,0.49394]
[1766149330042,0.0025,88094.0,88081.0,0.50529318]
[1766149330305,0.00572,88093.0,88081.0,0.49394]
[1766149330538,0.00572,88093.0,88077.0,0.0113537]
[1766149330539,0.59654,88093.0,88077.0,0.06812188]
[1766149330746,0.59654,88093.0,88077.0,0.0113537]
[1766149330934,0.59654,88093.0,88077.0,0.06812213]
[1766149331246,0.59654,88093.0,88077.0,0.0113537]
[1766149331451,0.59654,88093.0,88078.0,0.01135357]
[1766149331667,0.00572,88092.0,88080.0,0.01135331]
[1766149332098,0.59082,88093.0,88080.0,0.01135331]
[1766149332340,0.59082,88093.0,88076.0,0.23842962]
[1766149332341,0.01135189,88091.0,88060.0,2.4553716]
[1766149332510,0.01135189,88091.0,88066.0,0.01707512]
[1766149332511,0.59082,88079.0,88066.0,0.01707512]
[1766149332705,0.4798,88081.0,88067.0,0.00572]
[1766149333550,0.4798,88081.0,88067.0,0.01707499]
[1766149333746,0.4798,88081.0,88067.0,0.00572]
[1766149334004,0.4798,88081.0,88067.0,0.01707499]
[1766149334245,0.4798,88081.0,88067.0,0.00572]
[1766149334442,0.00572,88082.0,88068.0,0.0025]
[1766149334638,0.59082,88079.0,88068.0,0.0025]
[1766149334843,0.02838393,88078.0,88068.0,0.0025]
[1766149335202,0.02838393,88078.0,88072.0,0.0025]
[1766149335435,0.02838393,88078.0,88068.0,0.0025]
[1766149336459,0.001099,88068.0,88067.0,0.00572]
[1766149336657,0.02798356,88075.0,88067.0,0.00572]
[1766149337842,0.02798356,88075.0,88056.0,0.0113564]
[1766149337843,0.001099,88067.0,88054.0,0.04548]
[1766149338042,0.001099,88067.0,88062.0,0.00572]
[1766149338310,0.60813683,88069.0,88062.0,0.00572]
[1766149338598,0.01135408,88074.0,88054.0,0.04548]
[1766149338599,0.57975,88066.0,88058.0,0.00572]
[1766149339575,0.00572,88076.0,88058.0,0.00572]
[1766149339576,1e-08,88120.0,88099.0,0.45486]
[1766149339799,0.0512,88119.0,88101.0,1.0769]
[1766149339997,0.02837104,88118.0,88102.0,0.0025]
[1766149340199,1e-08,88120.0,88104.0,0.05675067]
[1766149340402,1e-08,88120.0,88105.0,0.01135009]
[1766149340719,1e-08,88120.0,88094.0,0.04547496]
[1766149340720,0.001099,88105.0,88095.0,0.01135138]
[1766149340934,0.00572,88104.0,88097.0,0.01135112]
[1766149341261,0.00572,88104.0,88096.0,0.01135125]
[1766149341475,0.00572,88104.0,88098.0,0.01135099]
[1766149341884,0.00572,88104.0,88099.0,0.01135086]
[1766149342092,0.02837297,88112.0,88104.0,0.01135022]
[1766149342292,0.02837297,88112.0,88096.0,0.01135125]
[1766149342293,0.04548,88103.0,88096.0,0.01135125]
[1766149342516,0.04548,88103.0,88099.0,0.01135086]
[1766149342517,0.00572,88102.0,88099.0,0.01135086]
[1766149342742,0.02837297,88112.0,88091.0,0.0025]
[1766149343056,0.02837297,88112.0,88068.0,0.34064209]
[1766149343057,0.02837297,88112.0,88098.0,0.01135099]
[1766149343242,0.02837297,88112.0,88101.0,0.0113506]
[1766149343481,0.05116,88111.0,88101.0,0.0113506]
[1766149343690,0.05116,88110.0,88103.0,0.01135035]
[1766149343894,0.05116,88110.0,88102.0,0.01135048]
[1766149344033,0.05116,88110.0,88102.0,0.06810285]
[1766149344256,0.05116,88110.0,88102.0,0.01135048]
[1766149344837,0.05116,88110.0,88101.0,0.05675304]
[1766149345044,0.05116,88110.0,88102.0,0.05675224]
[1766149345245,0.05116,88110.0,88102.0,0.01135048]
[1766149345643,0.02837297,88112.0,88103.0,0.01135035]
[1766149345806,0.05116,88109.0,88104.0,0.01135022]
[1766149346013,0.05116,88109.0,88103.0,0.01135035]
[1766149346216,0.05116,88109.0,88100.0,0.01135073]
[1766149346797,0.05116,88109.0,88099.0,0.01135086]
[1766149346996,0.05116,88109.0,88098.0,0.06810543]
[1766149347201,0.05116,88109.0,88090.0,2.68480073]
[1766149347202,0.01134983,88107.0,88087.0,0.01135241]
[1766149347359,0.05116,88109.0,88090.0,0.0025]
[1766149347360,0.580849,88098.0,88090.0,0.0025]
[1766149347562,0.00572,88097.0,88085.0,0.06811599]
[1766149347762,0.00572,88097.0,88085.0,0.01135267]
[1766149347964,0.00572,88097.0,88087.0,0.01135241]
[1766149348164,0.00572,88097.0,88088.0,0.01135228]
[1766149348369,0.00572,88097.0,88089.0,0.01135215]
[1766149348571,0.00572,88097.0,88087.0,0.06811446]
[1766149348789,0.00572,88097.0,88088.0,0.01135228]
[1766149349102,0.00572,88097.0,88084.0,0.01135279]
[1766149349341,0.00572,88097.0,88082.0,0.5229783]
[1766149349533,0.03409781,88097.0,88085.0,0.01135267]
[1766149349942,0.001099,88085.0,88084.0,0.0025]
[1766149350175,0.05116,88085.0,88084.0,0.0025]
[1766149350814,0.01705166,88085.0,88084.0,0.0025]
[1766149353612,0.001099,88084.0,88076.0,0.0025]
[1766149353822,0.02838199,88084.0,88076.0,0.0025]
[1766149354765,0.02838199,88084.0,88071.0,0.0025]
[1766149355409,0.59092199,88084.0,88068.0,1.0769]
[1766149355752,1.06058,88084.0,88068.0,1.0769]
[1766149355958,1.06058,88084.0,88069.0,0.0025]
[1766149356526,1.06058,88084.0,88069.0,0.01385473]
[1766149356736,0.02838232,88083.0,88069.0,0.01385473]
[1766149356931,0.02838232,88083.0,88069.0,0.0025]
[1766149357118,0.59092232,88083.0,88069.0,0.0025]
[1766149357314,0.56254,88083.0,88069.0,0.0025]
[1766149357515,0.56254,88083.0,88068.0,0.45486]
[1766149357516,0.02838264,88082.0,88068.0,0.45486]
[1766149359271,0.53777569,88082.0,88068.0,0.45486]
[1766149359474,0.02840433,88085.0,88060.0,0.01385589]
[1766149359475,0.56254,88077.0,88060.0,0.01385589]
[1766149359676,0.03379662,88076.0,88062.0,0.0025]
[1766149360266,0.03379662,88076.0,88062.0,0.48276563]
[1766149360688,0.03379662,88076.0,88062.0,0.47141]
[1766149360895,0.03379662,88076.0,88062.0,0.52568632]
[1766149361123,0.03379662,88076.0,88064.0,0.05927624]
[1766149361483,0.03379662,88076.0,88064.0,0.0025]
[1766149361874,0.03379662,88076.0,88064.0,0.01385537]
[1766149362074,0.03379662,88076.0,88064.0,0.06813175]
[1766149362308,0.03379662,88076.0,88065.0,0.0025]
[1766149363342,0.03379662,88076.0,88063.0,0.0138555]
[1766149363564,0.03379662,88076.0,88063.0,0.4827655]
[1766149363892,0.03379662,88076.0,88063.0,0.47141]
[1766149364050,0.03379662,88076.0,88063.0,0.4827655]
[1766149364467,0.03379662,88076.0,88064.0,0.0025]
[1766149364675,0.03379662,88076.0,88064.0,0.47141]
[1766149365305,0.03379662,88076.0,88064.0,0.47052226]
[1766149366913,0.03379662,88076.0,88060.0,0.01146517]
[1766149366914,0.001099,88064.0,88060.0,0.00010928]
[1766149367115,0.0512,88063.0,88060.0,0.00010928]
[1766149368439,0.0512,88063.0,88060.0,2.8e-07]
[1766149370164,0.0512,88063.0,88055.0,0.00239908]
[1766149370373,0.05130912,88063.0,88055.0,0.00239908]
[1766149370708,0.56254,88080.0,88058.0,0.46891]
[1766149370849,0.01135395,88075.0,88059.0,0.46891]
[1766149371045,0.01481768,88074.0,88059.0,0.46891]
[1766149374131,0.02617176,88074.0,88059.0,0.46891]
[1766149374311,0.58871176,88074.0,88059.0,0.46891]
[1766149374548,0.57961408,88074.0,88059.0,0.46891]
[1766149374728,0.04033754,88114.0,88075.0,0.46891]
[1766149374729,1.06058,88089.0,88075.0,0.46891]
[1766149374939,0.00572,88088.0,88076.0,0.46891]
[1766149375286,0.0512,88087.0,88083.0,0.46891]
[1766149375407,0.0512,88086.0,88083.0,0.46891]
[1766149375604,0.0512,88085.0,88083.0,0.46891]
[1766149375866,0.005611,88084.0,88083.0,0.46891]
[1766149376065,0.00909768,88097.0,88083.0,0.46891]
[1766149376476,0.0512,88096.0,88083.0,0.46891]
[1766149376625,0.00909768,88095.0,88083.0,0.46891]
[1766149376837,0.49804,88098.0,88083.0,0.46891]
[1766149376838,0.0512,88094.0,88083.0,0.48026292]
[1766149377068,0.0512,88094.0,88083.0,0.46891]
[1766149378050,0.00909768,88093.0,88083.0,0.46891]
[1766149378411,0.57163768,88093.0,88078.0,0.0025]
[1766149378578,0.56254,88093.0,88080.0,0.0025]
[1766149378764,0.00909768,88092.0,88080.0,0.0025]
[1766149379778,0.00909768,88092.0,88078.0,0.0025]
[1766149379779,0.57163768,88092.0,88078.0,0.0025]
[1766149379978,0.56254,88092.0,88078.0,0.0025]
[1766149380226,0.00909768,88091.0,88078.0,0.0025]
[1766149380431,0.00909768,88091.0,88078.0,0.01385357]
[1766149380561,0.00909768,88091.0,88078.0,0.0025]
[1766149380818,0.50713768,88091.0,88078.0,0.47141]
[1766149380976,0.0512,88090.0,88078.0,0.48276357]
[1766149381157,0.00909768,88089.0,88080.0,0.0025]
[1766149381359,0.00909768,88089.0,88080.0,0.01385331]
[1766149381578,0.00909768,88089.0,88080.0,0.0025]
[1766149386963,0.06585899,88089.0,88069.0,0.46682473]
[1766149387143,0.001099,88080.0,88079.0,1.84033271]
[1766149387342,0.006819,88080.0,88071.0,0.46682447]
[1766149387546,0.00572,88080.0,88071.0,0.45547]
[1766149387748,0.00572,88080.0,88071.0,0.46682447]
[1766149387950,0.00572,88080.0,88070.0,1.84033271]
[1766149388550,1.03133,88079.0,88070.0,1.84033271]
[1766149389448,0.00572,88080.0,88070.0,1.84033271]
[1766149389449,0.45805,88075.0,88070.0,1.84033271]
[1766149389671,0.45805,88075.0,88067.0,0.0025]
[1766149389672,0.0512,88074.0,88067.0,0.0025]
[1766149389856,0.06029768,88074.0,88067.0,0.0025]
[1766149391114,0.06029768,88074.0,88065.0,0.0025]
[1766149391318,0.06029768,88074.0,88064.0,0.0025]
[1766149391458,0.06029768,88074.0,88060.0,1.84097106]
[1766149391459,0.57328,88072.0,88060.0,1.84097106]
[1766149391658,0.57328,88072.0,88061.0,0.0025]
[1766149392116,0.45805,88073.0,88061.0,0.45797]
[1766149392684,1.03133,88073.0,88061.0,0.45797]
[1766149393877,0.0512,88074.0,88020.0,5.71112199]
[1766149393878,0.0512,88074.0,88035.0,0.17452]
[1766149393879,0.57328,88059.0,88035.0,0.17452]
[1766149394088,0.63357768,88058.0,88043.0,0.01135808]
[1766149394292,0.62448,88058.0,88043.0,0.46682808]
[1766149394405,0.00909768,88057.0,88044.0,0.0025]
[1766149394608,0.00909768,88057.0,88043.0,0.45547]
[1766149394609,0.46714768,88057.0,88043.0,0.45547]
[1766149394813,0.57328,88056.0,88043.0,0.45547]
[1766149395015,0.00909768,88055.0,88044.0,0.0025]
[1766149400033,0.00909768,88055.0,88024.0,0.45547]
[1766149400034,0.05679464,88037.0,88024.0,0.45547]
[1766149400235,0.05679464,88037.0,88017.0,0.0568071]
[1766149400236,0.05679464,88037.0,88015.0,0.01136169]
[1766149400237,0.58463963,88031.0,88011.0,0.45547]
[1766149400489,0.59945744,88030.0,88011.0,0.45557924]
[1766149400623,0.01136002,88028.0,88014.0,0.0025]
[1766149400823,0.57328,88029.0,88014.0,0.0025]
[1766149401269,0.57328,88029.0,88014.0,0.45797]
[1766149401473,0.58463989,88029.0,88014.0,0.45797]
[1766149401891,0.58463989,88029.0,88014.0,0.45547]
[1766149401892,0.57328,88029.0,88014.0,0.45547]
[1766149402116,0.58463989,88029.0,88015.0,0.0025]
[1766149402319,0.57328,88029.0,88015.0,0.0025]
[1766149402819,0.01136015,88027.0,88015.0,0.0025]
[1766149402954,0.00909768,88026.0,88015.0,0.0025]
[1766149403143,0.00572,88025.0,88015.0,0.0025]
[1766149403932,0.01135937,88033.0,88015.0,0.0025]
[1766149403934,0.04548,88039.0,88034.0,0.06815543]
[1766149404102,0.00572,88038.0,88035.0,0.4651]
[1766149404265,0.62958692,88052.0,88035.0,0.4651]
[1766149404266,0.00572,88037.0,88035.0,0.4651]
[1766149405303,0.0025,88049.0,88035.0,0.4651]
[1766149405502,0.04548,88044.0,88035.0,0.4651]
[1766149405837,0.00572,88043.0,88035.0,0.4651]
[1766149408398,0.61823,88050.0,88041.0,0.12332]
[1766149408399,0.00572,88042.0,88041.0,0.12332]
[1766149408603,0.00572,88042.0,88041.0,0.58494]
[1766149409878,0.00572,88042.0,88041.0,0.46162]
[1766149410646,0.00572,88042.0,88039.0,0.0025]
[1766149410851,0.00572,88042.0,88008.0,0.45450309]
[1766149410852,0.61823,88038.0,88022.0,0.01136079]
[1766149411100,0.04547496,88040.0,88015.0,0.4559]
[1766149411101,0.46472,88033.0,88015.0,0.4559]
[1766149411301,0.61823,88031.0,88016.0,0.0025]
[1766149411503,0.61823,88030.0,88016.0,0.0025]
[1766149412092,0.61823,88030.0,88016.0,0.01386157]
[1766149412321,0.61823,88030.0,88016.0,0.0025]
[1766149412519,0.46472,88031.0,88019.0,0.0025]
[1766149414063,0.46565,88029.0,88019.0,0.0025]
[1766149414220,0.61779,88027.0,88019.0,0.0025]
[1766149414424,0.00572,88026.0,88019.0,0.0025]
[1766149418130,0.00572,88026.0,88013.0,0.0025]
[1766149418894,0.00572,88026.0,88013.0,0.4584]
[1766149419492,0.00572,88026.0,88013.0,0.4559]
[1766149419493,0.61779,88026.0,88013.0,0.4559]
[1766149419692,0.61779,88026.0,88006.0,0.0025]
[1766149419693,0.61779,88021.0,88006.0,0.0025]
[1766149419899,0.00572,88020.0,88008.0,0.4584]
[1766149420459,0.00572,88020.0,88010.0,0.0025]
[1766149420870,0.00572,88020.0,88006.0,0.00010924]
[1766149420871,0.61779,88014.0,88006.0,0.00010924]
[1766149421076,0.00572,88020.0,88006.0,0.00010924]
[1766149421077,0.00572,88013.0,88006.0,0.00010924]
[1766149423767,0.46565,88015.0,88006.0,0.00010924]
[1766149423768,0.00572,88012.0,88006.0,0.00010924]
[1766149426251,0.46565,88015.0,88006.0,0.00010924]
[1766149426483,0.00572,88014.0,88006.0,0.00010924]
[1766149429952,0.0025,88026.0,88014.0,0.458399]
[1766149430129,0.0025,88024.0,88014.0,0.4573]
[1766149430359,0.04548,88035.0,88015.0,0.0025]
[1766149430567,0.05679172,88042.0,88015.0,0.0025]
[1766149430568,0.00572,88034.0,88026.0,0.4573]
[1766149430783,1.08344,88042.0,88026.0,0.4573]
[1766149430784,0.04547496,88041.0,88026.0,0.4573]
[1766149430991,1.09479821,88042.0,88030.0,1.84366113]
[1766149430992,1.08344,88042.0,88030.0,1.84366113]
[1766149431215,0.01135744,88048.0,88014.0,0.00572]
[1766149431216,0.00572,88041.0,88031.0,0.4573]
[1766149431629,0.10231291,88044.0,88031.0,0.4573]
[1766149431630,0.00572,88040.0,88031.0,0.4573]
[1766149432166,0.0113586,88039.0,88031.0,0.4573]
[1766149432364,0.01135873,88038.0,88031.0,0.4573]
[1766149432547,0.01135886,88037.0,88031.0,0.4573]
[1766149432750,0.01135911,88035.0,88031.0,0.4573]
[1766149432951,0.01135873,88038.0,88025.0,0.0025]
[1766149432952,0.05679842,88031.0,88025.0,0.0025]
[1766149433152,0.05679842,88031.0,88022.0,0.4573]
[1766149433153,0.01135963,88031.0,88023.0,0.0025]
[1766149433542,0.01135937,88033.0,88023.0,0.0025]
[1766149433543,0.06815762,88032.0,88023.0,0.0025]
[1766149433766,0.06815762,88032.0,88022.0,0.4573]
[1766149433767,0.06815762,88032.0,88006.0,0.12342924]
[1766149433768,0.0113595,88032.0,88006.0,0.12342924]
[1766149433983,0.0113595,88032.0,88018.0,0.4598]
[1766149433984,0.00572,88031.0,88018.0,0.4598]
[1766149434620,0.01707963,88031.0,88018.0,0.4598]
[1766149434781,0.07387829,88031.0,88018.0,0.4598]
[1766149435000,0.61779,88028.0,88012.0,0.58312]
[1766149435232,0.61779,88028.0,88013.0,0.4598]
[1766149435888,0.61779,88028.0,88015.0,0.0025]
[1766149436294,0.00572,88027.0,88015.0,0.4623]
[1766149436973,0.00572,88027.0,88012.0,0.36192328]
[1766149436974,0.004621,88027.0,88017.0,0.0025]
[1766149437201,0.00572,88026.0,88017.0,0.0025]
[1766149441044,0.00572,88026.0,88017.0,0.01386144]
[1766149441288,0.00572,88026.0,88017.0,0.0025]
[1766149442373,0.00572,88025.0,88022.0,0.01136079]
[1766149442552,0.00572,88030.0,88027.0,0.1176]
[1766149442753,0.62914769,88046.0,88027.0,0.1176]
[1766149442754,0.0025,88039.0,88028.0,0.4598]
[1766149442936,0.0025,88037.0,88028.0,0.4598]
[1766149445629,0.58089,88054.0,88034.0,0.4598]
[1766149445835,0.01135602,88059.0,88042.0,0.4598]
[1766149445836,0.0512,88053.0,88042.0,0.4598]
[1766149446034,0.0512,88053.0,88036.0,0.0025]
[1766149446036,0.581989,88042.0,88036.0,0.0025]
[1766149446242,0.49809,88040.0,88036.0,0.0025]
[1766149446449,0.58661,88041.0,88036.0,0.0025]
[1766149446450,0.00572,88041.0,88036.0,0.0025]
[1766149446645,0.00572,88041.0,88031.0,0.0025]
[1766149447207,0.00572,88041.0,88031.0,0.01385963]
[1766149447407,0.00572,88041.0,88032.0,0.0113595]
[1766149447771,0.00572,88041.0,88031.0,0.01385963]
[1766149447772,0.00572,88041.0,88033.0,0.0025]
[1766149448602,0.00572,88041.0,88031.0,0.01385963]
[1766149449236,0.00572,88041.0,88031.0,0.0025]
[1766149449729,0.58089,88054.0,88039.0,0.0113586]
[1766149449931,0.0512,88053.0,88040.0,0.4598]
[1766149450296,0.0512,88053.0,88040.0,0.47115847]
[1766149450478,0.00572,88052.0,88040.0,0.4598]
[1766149450687,0.00572,88052.0,88042.0,0.4598]
[1766149457397,0.001099,88042.0,88037.0,0.0025]
[1766149457607,0.001099,88042.0,88037.0,0.51188426]
[1766149457815,0.62982,88052.0,88038.0,0.01385873]
[1766149458137,0.62982,88052.0,88038.0,0.0025]
[1766149458138,0.6241,88050.0,88038.0,0.0025]
[1766149458392,0.47049,88047.0,88038.0,0.0025]
[1766149458562,0.62982,88046.0,88038.0,0.0025]
[1766149459185,0.00572,88046.0,88038.0,0.0025]
[1766149460441,0.00572,88046.0,88038.0,0.001401]
[1766149462033,0.00572,88046.0,88029.0,0.08387887]
[1766149462034,0.05679236,88040.0,88019.0,0.00572]
[1766149462233,0.6241,88035.0,88022.0,0.01136079]
[1766149462392,0.6241,88035.0,88021.0,0.01136092]
[1766149462593,0.6241,88035.0,88022.0,0.45509]
[1766149462942,0.0170786,88039.0,88025.0,0.45259]
[1766149462943,0.00572,88039.0,88025.0,0.45259]
[1766149463488,0.62982,88039.0,88025.0,0.45259]
[1766149465130,0.6411786,88039.0,88025.0,0.45259]
[1766149465337,0.01135873,88038.0,88025.0,0.45259]
[1766149465517,0.63545886,88037.0,88021.0,0.0025]
[1766149465737,0.6241,88035.0,88021.0,0.0025]
[1766149467726,0.01135808,88043.0,88035.0,0.001099]
[1766149467930,0.01135808,88043.0,88028.0,0.10044]
[1766149467931,0.00572,88042.0,88029.0,0.48251978]
[1766149468114,0.00572,88041.0,88026.0,0.5033316]
[1766149468317,0.00572,88040.0,88031.0,0.26087]
[1766149468566,0.00572,88039.0,88035.0,0.26087]
[1766149468852,0.00572,88039.0,88028.0,0.01136002]
[1766149469342,0.00572,88039.0,88029.0,0.24951]
[1766149469726,0.59886,88042.0,88029.0,0.24951]
[1766149469727,0.59886,88042.0,88030.0,0.06815844]
[1766149470078,0.0025,88049.0,88031.0,0.26086963]
[1766149470079,0.00572,88041.0,88031.0,0.26086963]
[1766149470412,0.00572,88041.0,88032.0,0.24951]
[1766149471886,0.00572,88040.0,88032.0,0.2608695]
[1766149472143,0.00572,88040.0,88032.0,0.24951]
[1766149472696,0.00572,88043.0,88040.0,0.001099]
[1766149473141,0.06814206,88052.0,88040.0,0.001099]
[1766149473142,4.11e-06,88056.0,88050.0,0.33565]
[1766149473337,1.09272,88076.0,88050.0,0.33565]
[1766149473338,0.06812316,88076.0,88057.0,0.089]
[1766149473492,0.04547496,88073.0,88059.0,0.24093]
[1766149473692,0.64433496,88073.0,88059.0,0.24093]
[1766149473892,0.59886,88073.0,88059.0,0.24093]
[1766149474458,0.04547496,88072.0,88059.0,0.24093]
[1766149475291,0.00572,88071.0,88059.0,0.24093]
[1766149476149,0.04547496,88072.0,88056.0,0.06813821]
[1766149476321,0.00572,88070.0,88057.0,0.01135628]
[1766149476555,0.60383,88071.0,88056.0,0.0113564]
[1766149476747,0.00572,88069.0,88056.0,0.0113564]
[1766149476882,0.60383,88071.0,88057.0,0.01135628]
[1766149477077,0.54332496,88072.0,88058.0,0.24093]
[1766149477078,0.49785,88072.0,88058.0,0.24093]
[1766149477322,0.01135395,88075.0,88053.0,0.00572]
[1766149477323,0.00572,88070.0,88053.0,0.00572]
[1766149477526,0.60383,88066.0,88054.0,0.01385666]
[1766149477726,0.60383,88066.0,88055.0,0.01135653]
[1766149477928,0.60383,88066.0,88054.0,0.07063995]
[1766149478087,0.60383,88066.0,88054.0,0.0025]
[1766149478305,0.60383,88066.0,88054.0,0.01385666]
[1766149478505,0.00572,88065.0,88054.0,0.0025]
[1766149479524,0.60383,88062.0,88054.0,0.0025]
[1766149479804,1.10168,88068.0,88054.0,0.0025]
[1766149480104,0.60383,88067.0,88054.0,0.0025]
[1766149480299,0.60383,88065.0,88054.0,0.0025]
[1766149480743,0.00572,88064.0,88054.0,0.0025]
[1766149480946,0.60383,88065.0,88054.0,0.0025]
[1766149481161,0.00572,88063.0,88055.0,0.01135653]
[1766149481657,0.49785,88067.0,88055.0,0.01135653]
[1766149481873,0.00572,88063.0,88055.0,0.01135653]
[1766149482243,0.49785,88067.0,88055.0,0.01135653]
[1766149482555,0.49785,88067.0,88056.0,0.0113564]
[1766149482761,0.00572,88066.0,88055.0,0.06813909]
[1766149482988,0.00572,88066.0,88056.0,0.0113564]
[1766149483164,0.49785,88067.0,88055.0,0.06813909]
[1766149483374,0.00572,88065.0,88056.0,0.0113564]
[1766149483777,0.00572,88065.0,88055.0,0.01135653]
[1766149484121,0.00572,88065.0,88056.0,0.0113564]
[1766149484319,0.00572,88065.0,88054.0,0.0706397]
[1766149484781,0.00572,88065.0,88055.0,0.01135653]
[1766149484959,0.00572,88065.0,88054.0,0.0706397]
[1766149485316,0.00572,88065.0,88054.0,0.01385666]
[1766149485507,0.004621,88065.0,88059.0,0.24093]
[1766149485894,0.60383,88074.0,88067.0,0.01135499]
[1766149486100,0.01,88090.0,88065.0,0.05677624]
[1766149486101,0.60383,88099.0,88082.0,0.01135305]
[1766149486305,0.60391683,88099.0,88083.0,0.01135292]
[1766149486509,8.683e-05,88099.0,88087.0,0.01135241]
[1766149486707,0.00572,88098.0,88091.0,0.05675939]
[1766149486926,0.00572,88098.0,88088.0,0.01135228]
[1766149487133,0.00572,88098.0,88087.0,0.01135241]
[1766149487333,0.00572,88098.0,88088.0,0.01135228]
[1766149487518,0.00572,88098.0,88086.0,0.25218254]
[1766149488127,0.00572,88098.0,88086.0,0.24083]
[1766149488325,8.683e-05,88099.0,88089.0,0.01135215]
[1766149488525,0.00572,88097.0,88089.0,0.01135215]
[1766149488725,0.00572,88097.0,88088.0,0.06811348]
[1766149489007,0.00572,88097.0,88086.0,0.24083]
[1766149489335,0.00572,88097.0,88079.0,0.00572]
[1766149489336,0.60383,88087.0,88079.0,0.00572]
[1766149489515,0.498949,88088.0,88079.0,0.00572]
[1766149489516,0.49785,88088.0,88079.0,0.00572]
[1766149492451,0.001099,88079.0,88072.0,0.0025]
[1766149492795,0.00572,88089.0,88072.0,0.0025]
[1766149492796,0.00572,88089.0,88074.0,0.0025]
[1766149493001,0.50357,88089.0,88074.0,0.0025]
[1766149493318,0.49785,88088.0,88074.0,0.01385408]
[1766149493514,0.60383,88087.0,88074.0,0.0025]
[1766149494124,0.60383,88086.0,88074.0,0.0025]
[1766149495573,0.60383,88086.0,88074.0,0.01385408]
[1766149495813,0.60383,88086.0,88074.0,0.0025]
[1766149496162,0.60383,88086.0,88074.0,0.01385408]
[1766149496364,0.60383,88086.0,88074.0,0.0025]
[1766149496792,0.60383,88086.0,88074.0,0.01385408]
[1766149497178,0.60383,88086.0,88074.0,0.0025]
[1766149498005,0.60383,88086.0,88074.0,0.01385408]
[1766149498401,0.60383,88086.0,88074.0,0.0025]
[1766149498638,0.60383,88086.0,88074.0,0.0003]
[1766149498996,0.60383,88086.0,88073.0,0.01707421]
[1766149499719,0.60383,88084.0,88063.0,0.22710811]
[1766149499916,1.84284668,88090.0,88068.0,0.00572]
[1766149499917,0.60383,88080.0,88068.0,0.00572]
[1766149500216,0.60383,88080.0,88068.0,0.01707486]
[1766149500373,0.60383,88080.0,88068.0,0.00572]
[1766149500585,0.60383,88080.0,88069.0,0.0025]
[1766149501461,0.60383,88080.0,88069.0,0.00240058]
[1766149501690,0.60383,88080.0,88062.0,0.05677765]
[1766149501945,0.60383,88080.0,88030.0,0.04647495]
[1766149501946,0.60383,88080.0,88047.0,0.01135757]
[1766149501947,0.60383,88066.0,88047.0,0.01135757]
[1766149502160,0.60383,88062.0,88047.0,0.01707757]
[1766149502362,0.49785,88060.0,88047.0,0.00572]
[1766149502570,0.49785,88060.0,88040.0,0.24083]
[1766149502571,0.60383,88053.0,88043.0,0.00572]
[1766149502774,0.60383,88052.0,88043.0,0.00572]
[1766149502977,0.60383,88050.0,88043.0,0.00572]
[1766149503124,0.60383,88050.0,88043.0,0.00608411]
[1766149505001,0.47343,88058.0,88043.0,0.00608411]
[1766149505171,0.57358,88056.0,88043.0,0.00608411]
[1766149506563,0.47343,88055.0,88043.0,0.00608411]
[1766149506766,1.04701,88055.0,88043.0,0.00608411]
[1766149507568,1.04701,88055.0,88044.0,0.01135795]
[1766149507690,0.00572,88059.0,88044.0,0.01135795]
[1766149507691,0.00572,88059.0,88045.0,0.01135782]
[1766149507894,0.01135395,88075.0,88043.0,0.00608411]
[1766149507895,0.58493344,88079.0,88060.0,0.24083]
[1766149508094,0.06254853,88078.0,88061.0,0.24083]
[1766149508321,0.06254853,88078.0,88059.0,0.10607602]
[1766149508322,0.47343,88074.0,88059.0,0.00572]
[1766149508527,0.47343,88067.0,88059.0,0.00572]
[1766149508982,0.5793,88070.0,88059.0,0.00572]
[1766149509191,0.47343,88074.0,88059.0,0.01707602]
[1766149509396,0.00572,88073.0,88060.0,0.24083]
[1766149510677,0.00572,88075.0,88064.0,0.24083]
[1766149511278,0.00572,88075.0,88064.0,0.25218537]
[1766149511501,0.00572,88075.0,88064.0,0.30896223]
[1766149511701,0.00572,88075.0,88065.0,0.01135524]
[1766149512124,0.00572,88075.0,88064.0,0.30896223]